Cogmind - Beta 11 @@@ ROGUE MODE // 2022.03.29 @ 11:03:34 Player: Qirby Result: Destroyed by G-47 Trooper with Particle Gun Performance ------------- Evolutions (2) 1000 Regions Visited (6) 1200 Robots Destroyed (87) 435 Value Destroyed (2462) 2462 Prototype IDs (2) 40 Alien Tech Used (0) 0 Bonus (1088) 1088 TOTAL SCORE: 6225 Bonus ------- High Alert Combat Kills 352 Follower Combat Kills 199 Entered Garrisons 200 Used RIF Installer 500 Friendly Fire -163 Cogmind --------- Core Integrity 0/550 Matter 280/300 Energy 257/265 System Corruption 9% Temperature Cool (9) Movement Rolling (86) Location -8/Materials Parts ------- > --- POWER (1) -------- Improved Ion Engine > --- PROPULSION (4) --- Aluminum Leg Wheel Wheel Compact Wheel > --- UTILITY (4) ------ Medium Storage Unit Visual Processing Unit Improved Signal Interpreter > --- WEAPON (2) ------- Pulse Rifle Advanced Beam Rifle > --- INVENTORY (10) --- Medium Storage Unit Compact Matter Pod (150) Mining Claw Peak State ------------ > --- POWER ------------ Light Nuclear Core > --- PROPULSION ------- Aluminum Leg Aluminum Leg > --- UTILITY ---------- Medium Storage Unit Compact Battery Visual Processing Unit Improved Signal Interpreter > --- WEAPON ----------- Advanced Beam Rifle Advanced Beam Rifle > --- INVENTORY -------- Light Nuclear Core Light Nuclear Core Medium Storage Unit Compact Matter Pod Mining Claw [Rating: 23] Favorites ----------- Power Ion Engine Engine Ion Engine Power Core Light Nuclear Core Propulsion Aluminum Leg Treads Light Treads Leg Aluminum Leg Wheel Compact Wheel Flight Unit Flight Unit Utility Signal Interpreter Device Improved Heat Sink Storage Compact Battery Processor Signal Interpreter Protection Light Armor Plating Weapon Light Assault Rifle Energy Gun Beam Rifle Ballistic Gun Light Assault Rifle Launcher Grenade Launcher Slashing Weapon Mining Claw Build | -11 -10 -10 -9 -8 -8 -8 ------- Run | Scr Mat Min Mat Mat Gar Mat Slots Evolved 4 | . . . 2 2 . . Power . | . . . . . . . Propulsion 2 | . . . 2 . . . Utility 2 | . . . . 2 . . Weapon . | . . . . . . . Parts Attached 103 | 12 2 3 25 11 29 21 Power 16 | 4 . 1 2 1 4 4 Engine 11 | 4 . 1 2 . 2 2 Core 5 | . . . . 1 2 2 Reactor . | . . . . . . . Propulsion 38 | 4 . . 11 2 13 8 Treads 4 | 2 . . . . 1 1 Leg 27 | 2 . . 11 2 8 4 Wheel 3 | . . . . . . 3 Hover . | . . . . . . . Flight 4 | . . . . . 4 . Utility 20 | 2 2 . 1 6 6 3 Device 7 | 1 1 . . 3 2 . Storage 6 | 1 . . 1 . 3 1 Processor 3 | . 1 . . . . 2 Hackware . | . . . . . . . Protection 4 | . . . . 3 1 . Artifact . | . . . . . . . Weapon 29 | 2 . 2 11 2 6 6 Energy Gun 13 | . . 2 3 1 2 5 Energy Cannon . | . . . . . . . Ballistic Gun 7 | 2 . . 2 1 2 . Ballistic Cannon . | . . . . . . . Launcher 6 | . . . 3 . 2 1 Special Weapon . | . . . . . . . Impact Weapon . | . . . . . . . Slashing Weapon 3 | . . . 3 . . . Piercing Weapon . | . . . . . . . Special Melee Weapon . | . . . . . . . Unidentified Prototypes 2 | . . . . 1 . 1 Parts Lost 39 | . 1 1 2 5 20 10 Power 7 | . . . 1 1 3 2 Propulsion 14 | . . . . 1 9 4 Utility 9 | . 1 . . 3 4 1 Weapon 9 | . . 1 1 . 4 3 Highest Loss Streak 11 | . 1 1 1 3 11 3 To Critical Strikes 1 | . . . . 1 . . Average Slot Usage (%) 89 | . 97 99 99 89 84 74 Engine 8 | . 14 14 11 3 2 7 Core 2 | . . . . 4 5 1 Treads 10 | . 28 28 5 . . . Leg 16 | . . . 38 35 19 17 Flight 3 | . . . . . 12 . Device 4 | . 8 . . 8 9 2 Storage 12 | . 14 14 11 9 10 14 Processor 7 | . 3 14 11 2 . 12 Protection 1 | . . . . 7 5 . Energy Gun 9 | . . 11 11 9 8 13 Ballistic Gun 11 | . 28 16 8 8 8 2 Naked Turns . | . . . . . . . Heaviest Build 29 | 14 14 13 21 29 26 23 Greatest Support 44 | 40 40 40 40 40 44 44 Greatest Overweight (x) 7 | 2 . . . . 6 7 Average Overweight (x) . | . . . . . . . Largest Inventory Capacity 10 | 8 8 8 10 10 10 10 Average Capacity 7 | 7 8 8 9 10 6 8 Most Carried 8 | 5 6 8 8 5 7 5 Average Carried 4 | 2 4 6 6 4 4 3 Final Capacity 10 | 8 8 8 10 10 5 10 Final Carried 8 | 3 5 8 6 5 3 3 Class Distribution -------------------- 55% | Scavenger-Mutant 39% | Mutant 4% | Scavenger-Sprinter Dominant Class ---------------- Mutant | -10/Materials Mutant | -10/Mines Scavenger-Mutant | -9/Materials Scavenger-Mutant | -8/Materials Scavenger-Mutant | -8/Garrison Scavenger-Mutant | -8/Materials Resources | -11 -10 -10 -9 -8 -8 -8 ----------- Run | Scr Mat Min Mat Mat Gar Mat Matter Collected 1936 | 367 112 117 408 189 399 344 Remotely . | . . . . . . . Salvage Created 3045 | 161 165 208 541 423 698 849 Parts 185 | 8 12 14 42 20 54 35 Haulers Intercepted 4 | . . . 1 . . 3 Recyclers Shooed 4 | . 1 . 2 . . 1 Parts Field Recycled . | . . . . . . . Retrieved Matter . | . . . . . . . Parts Self-Destructed . | . . . . . . . Prevented . | . . . . . . . Kills | -11 -10 -10 -9 -8 -8 -8 ------- Run | Scr Mat Min Mat Mat Gar Mat Combat Hostiles Destroyed 60 | . 4 2 12 7 27 8 Guns 44 | . 4 2 10 5 16 7 AOE 15 | . . . 2 1 11 1 Classes Destroyed 13 | 3 3 1 2 1 1 2 Worker 5 | 2 . 1 . . . 2 Builder 2 | . . 1 . 1 . . Tunneler 3 | 2 . . 1 . . . Hauler 4 | . . . 1 . . 3 Recycler 8 | 1 1 1 1 . . 4 Operator 1 | . . . . . . 1 Watcher 3 | . 1 . 1 . . 1 Swarmer 23 | . 3 . 4 . 16 . Grunt 25 | . 1 2 7 3 6 6 Brawler 1 | . . . . 1 . . Sentry 9 | . . . 2 3 3 1 Specialist 2 | . . . . . 2 . Hunter 1 | . . . . . . 1 Best Kill Streak 11 | 3 2 2 3 4 11 5 Combat Bots Only 11 | . 2 1 3 4 11 2 Max Kills in Single Turn 5 | 1 1 1 2 1 5 1 Gunslinging 1 | . . . 1 . . . Exploded 5 | . . . 1 1 5 1 Melee . | . . . . . . . Uniques/NPCs Destroyed . | . . . . . . . Combat | -11 -10 -10 -9 -8 -8 -8 -------- Run | Scr Mat Min Mat Mat Gar Mat Damage Taken 4415 | . 286 182 610 500 1679 1158 Core 738 | . 60 18 99 52 331 178 Absorbed by Shields 9 | . . . . . 9 . Regen/Repaired (Parts) 69 | . . . . . . 69 Core Remaining (%) 81 | 100 . 68 75 . . . Volleys Fired 284 | 13 33 26 65 28 57 62 Largest 2 | 2 2 2 2 2 2 2 Hottest 124 | 40 40 60 86 68 81 124 Shots Fired 515 | 21 66 47 122 55 103 101 Gun 509 | 21 66 47 119 55 101 100 Cannon . | . . . . . . . Launcher 6 | . . . 3 . 2 1 Special . | . . . . . . . Kinetic 286 | 21 66 36 54 28 50 31 Thermal 184 | . . 11 65 . 41 67 Explosive 6 | . . . 3 . 2 1 Electromagnetic 39 | . . . . 27 10 2 Robot Hit Streak 25 | 11 12 9 4 25 11 6 Robot Miss Streak 8 | 1 6 2 8 3 8 5 Penetration Max . | . . . . . . . Secondary Targets 5 | . . 1 2 1 . 1 Max Gunslinging Chain 1 | . . 1 1 1 . 1 Shots Hit Robots 302 | 13 26 34 61 44 59 65 Core Hits 150 | 7 11 12 29 16 41 34 Critical Kills 1 | 1 . . . . . . Critical Parts Destroyed . | . . . . . . . Critical Strikes 9 | 1 . . 2 . 2 4 Burn 8 | . . . 2 . 2 4 Destroy 1 | 1 . . . . . . Melee Attacks . | . . . . . . . Impact . | . . . . . . . Slashing . | . . . . . . . Piercing . | . . . . . . . Sneak Attacks . | . . . . . . . Combat Hostiles . | . . . . . . . Follow-up Attacks . | . . . . . . . Damage Inflicted 5236 | 153 276 337 1168 772 1219 1311 Guns 4437 | 153 276 329 923 716 765 1275 Cannons . | . . . . . . . Explosions 771 | . . . 229 56 454 32 Melee . | . . . . . . . Ramming 28 | . . 8 16 . . 4 Kinetic 2311 | 153 276 233 446 307 356 540 Thermal 1729 | . . 96 477 56 409 691 Explosive 627 | . . . 229 . 366 32 Electromagnetic 541 | . . . . 409 88 44 Impact . | . . . . . . . Slashing . | . . . . . . . Piercing . | . . . . . . . Highest Corruption 9 | . . . . 9 9 9 Average Corruption 8 | . . . . 8 9 9 Corruption Purged . | . . . . . . . Corruption Blocked . | . . . . . . . Effects 86 | . . . . 8 50 28 Message Errors 20 | . . . . . 13 7 Matter Fused 17 | . . . . 2 9 6 Heat Flow Errors 13 | . . . . 2 9 2 Energy Discharges 6 | . . . . . 3 3 Parts Rejected 4 | . . . . . 1 3 Data Loss (minor) 17 | . . . . 1 11 5 Data Loss (major) 4 | . . . . . 3 1 Misfires 3 | . . . . 2 . 1 Alerts 1 | . . . . . 1 . Weapon Failures 1 | . . . . 1 . . Overload Shots . | . . . . . . . Overflow Damage 17 | . . . . . 17 . Projectiles . | . . . . . . . Explosions 17 | . . . . . 17 . Melee . | . . . . . . . Knockbacks . | . . . . . . . Impact . | . . . . . . . Kinetic . | . . . . . . . Secondary . | . . . . . . . Self-Inflicted Damage 82 | . . . 25 . 57 . Shots 3 | . . . 1 . 2 . Rammed 6 | . 1 3 2 . . . Targets Rammed 9 | . 1 3 4 . . 1 Kicked 3 | . . . 2 . . 1 Crushed . | . . . . . . . Highest Temperature 256 | . 6 40 162 256 251 192 Average Temperature 47 | . 6 16 34 52 67 61 Received Heat Transfer 1476 | . 30 105 189 225 351 576 Effects 3 | . . . . 3 . . Interference 3 | . . . . 3 . . Siege Activations . | . . . . . . . Robots Corrupted 1 | . . . . 1 . . Combat Hostiles 1 | . . . . 1 . . Parts Fried 4 | . . . . 4 . . Impact Corruptions . | . . . . . . . Robots Melted . | . . . . . . . Combat Hostiles . | . . . . . . . Parts Melted 4 | . . . 2 . 1 1 Heat Transferred 4532 | . . 225 1369 50 1112 1776 Parts Sabotaged . | . . . . . . . Parts Stolen . | . . . . . . . Parts Stripped . | . . . . . . . Power Chain Reactions 3 | . . . . 1 2 . Missiles Intercepted . | . . . . . . . Alert | -11 -10 -10 -9 -8 -8 -8 ------- Run | Scr Mat Min Mat Mat Gar Mat Peak Influence 1096 | 25 238 60 503 399 1096 756 Initial 534 | . 16 20 . 204 259 534 Average 373 | 10 68 18 312 281 726 574 Maximum Alert Level 3 | . 1 . 2 1 3 3 Low Security (%) 37 | 100 90 100 23 . . . Level 1 16 | . 9 . 43 100 14 . Level 2 30 | . . . 32 . 33 94 Level 3 15 | . . . . . 51 5 Level 4 . | . . . . . . . Level 5 . | . . . . . . . High Security . | . . . . . . . Max Security . | . . . . . . . Squads Dispatched 10 | . 1 . 4 2 . 3 Investigation 2 | . . . . . . 2 Extermination . | . . . . . . . Reinforcement 6 | . 1 . 4 . . 1 Assault . | . . . . . . . Garrison 2 | . . . . 2 . . Intercept . | . . . . . . . Searches Triggered . | . . . . . . . Construction Impeded 1 | . . . 1 . . . Haulers Reinforced . | . . . . . . . Active Scanning Responses . | . . . . . . . Cargo Convoy Interrupts . | . . . . . . . Stealth | -11 -10 -10 -9 -8 -8 -8 --------- Run | Scr Mat Min Mat Mat Gar Mat Distress Signals 4 | . 3 . 1 . . . Communications Jammed . | . . . . . . . Distress Signals . | . . . . . . . Times Spotted 95 | . 14 2 29 7 28 15 Peak Tracking Total 11 | . 4 2 5 4 11 3 Tactical Retreats 4 | . 2 . 1 . 1 . Traps | -11 -10 -10 -9 -8 -8 -8 ------- Run | Scr Mat Min Mat Mat Gar Mat Traps Triggered 9 | . . . . . 8 1 Indirectly . | . . . . . . . Trap Hack Attempts . | . . . . . . . Triggered . | . . . . . . . Disarmed . | . . . . . . . Reprogrammed . | . . . . . . . Reused . | . . . . . . . Traps Extracted . | . . . . . . . Installed . | . . . . . . . Triggered . | . . . . . . . Machines | -11 -10 -10 -9 -8 -8 -8 ---------- Run | Scr Mat Min Mat Mat Gar Mat Machines Disabled 5 | . . . . . 2 3 Max in Single Turn 1 | . . . . . 1 1 Garrison Relay 2 | . . . . . 2 . Machines Sabotaged . | . . . . . . . Garrisons Compromised . | . . . . . . . Overloaded Fab Kills . | . . . . . . . Hacking | -11 -10 -10 -9 -8 -8 -8 --------- Run | Scr Mat Min Mat Mat Gar Mat Machines Accessed 6 | . 1 . . 3 . 2 Terminals 3 | . 1 . . 1 . 1 Fabricators . | . . . . . . . Repair Stations 2 | . . . . 1 . 1 Recycling Units . | . . . . . . . Scanalyzers . | . . . . . . . Garrison Access 1 | . . . . 1 . . Total Hacks 14 | . 3 . . 6 . 5 Successful 6 | . . . . 3 . 3 Failed 8 | . 3 . . 3 . 2 Catastrophic . | . . . . . . . Database Lockouts . | . . . . . . . Manual 1 | . . . . . . 1 Terminals 8 | . 3 . . 4 . 1 Fabricators . | . . . . . . . Repair Stations 5 | . . . . 1 . 4 Recycling Units . | . . . . . . . Scanalyzers . | . . . . . . . Garrison Access 1 | . . . . 1 . . Terminal Hacks 3 | . . . . 2 . 1 Record 2 | . . . . 2 . . Zone Layout 1 | . . . . . . 1 Fabricator Hacks . | . . . . . . . Repair Station Hacks 2 | . . . . . . 2 Scan Component 1 | . . . . . . 1 Repair 1 | . . . . . . 1 Recycling Unit Hacks . | . . . . . . . Scanalyzer . | . . . . . . . Garrison Access Hacks 1 | . . . . 1 . . Unlock Access 1 | . . . . 1 . . Unauthorized Hacks . | . . . . . . . Terminals . | . . . . . . . Fabricators . | . . . . . . . Repair Stations . | . . . . . . . Recycling Units . | . . . . . . . Scanalyzers . | . . . . . . . Garrison Access . | . . . . . . . Data Cores Recovered . | . . . . . . . Used . | . . . . . . . Hacking Detections 4 | . 1 . . 2 . 1 Full Trace Events 2 | . 1 . . . . 1 Feedback Events . | . . . . . . . Feedback Blocked . | . . . . . . . Robot Schematics Acquired . | . . . . . . . Robots Built . | . . . . . . . Authchips . | . . . . . . . Time . | . . . . . . . Total Robot Build Rating . | . . . . . . . Part Schematics Acquired . | . . . . . . . Parts Built . | . . . . . . . Authchips . | . . . . . . . Time . | . . . . . . . Total Part Build Rating . | . . . . . . . Parts Repaired 1 | . . . . . . 1 Time 32 | . . . . . . 32 Parts Recycled . | . . . . . . . Recycled Matter . | . . . . . . . Retrieved Matter . | . . . . . . . Retrieved Components . | . . . . . . . Parts Scanalyzed . | . . . . . . . Part Schematics Acquired . | . . . . . . . Parts Damaged . | . . . . . . . Bothacking | -11 -10 -10 -9 -8 -8 -8 ------------ Run | Scr Mat Min Mat Mat Gar Mat Used RIF Installer 1 | . . . . . 1 . Robots Hacked . | . . . . . . . Non-combat . | . . . . . . . Combat . | . . . . . . . Robot Hacks Applied . | . . . . . . . Relay Couplers Released 9 | . . . . . 9 . Machine Destruction 9 | . . . . . 9 . Fabnet Peak Effective % . | . . . . . . . Robots Rewired . | . . . . . . . Allies Hacked . | . . . . . . . Hacks Repelled . | . . . . . . . Allies | -11 -10 -10 -9 -8 -8 -8 -------- Run | Scr Mat Min Mat Mat Gar Mat Total Allies 3 | . . 3 . . . . Largest Group 3 | . . 3 3 . . . Highest-Rated Group 40 | . . 40 40 . . . Highest-Rated Ally 16 | . . 16 16 . . . Total Orders 4 | . . 4 . . . . GUARD 4 | . . 4 . . . . Ally Attacks 50 | . . . 50 . . . Total Damage 483 | . . . 483 . . . Kills 11 | . . . 11 . . . Allies Corrupted . | . . . . . . . Allies Melted . | . . . . . . . Intel | -11 -10 -10 -9 -8 -8 -8 ------- Run | Scr Mat Min Mat Mat Gar Mat Robot Analysis Total . | . . . . . . . Derelict Logs Recovered 1 | . . 1 . . . . Drone Launches . | . . . . . . . Drone Recoveries . | . . . . . . . Exploration | -11 -10 -10 -9 -8 -8 -8 ------------- Run | Scr Mat Min Mat Mat Gar Mat Turns Passed 5123 | 187 540 1072 773 241 1419 891 Spaces Moved 2492 | 101 268 609 411 97 637 369 Core 19 | 11 . . . . 6 2 Treads 995 | 42 268 609 26 . 2 48 Legs 1387 | 48 . . 385 97 541 316 Wheels 3 | . . . . . . 3 Hover . | . . . . . . . Flight 88 | . . . . . 88 . Fastest Speed 31 | 50 160 160 120 120 31 90 Average Speed 140 | 131 160 160 122 120 108 178 Slowest Speed 440 | 160 160 160 160 120 440 400 Overloaded Moves . | . . . . . . . Propulsion Burnouts . | . . . . . . . Robots Hopped . | . . . . . . . Cave-ins Triggered . | . . . . . . . Exploration Rate (%) 40 | 7 46 90 31 9 72 30 Regions Visited 6 Branch Regions 1 Pre-discovered Areas 1 | . . 1 . . . . Known Exits Taken 4 | . 1 1 1 1 . . Unknown Exits Taken 1 | 1 . . . . . . Scrap Searched 1 | . . 1 . . . . Spaces Dug . | . . . . . . . Terrain Destroyed 42 | . . . 24 4 7 7 Melee . | . . . . . . . Projectile . | . . . . . . . AOE 42 | . . . 24 4 7 7 Terrain Rammed . | . . . . . . . Walls Destroyed . | . . . . . . . Machines Disabled . | . . . . . . . Actions | -11 -10 -10 -9 -8 -8 -8 --------- Run | Scr Mat Min Mat Mat Gar Mat Total 3602 | 133 319 664 559 165 1264 498 Wait 568 | . 13 14 30 25 454 32 Move 2483 | 100 267 608 410 96 633 369 Hop . | . . . . . . . Pick Up 35 | 3 3 6 10 2 5 6 Fast Attach 54 | 8 . 2 4 7 18 15 Attach 32 | 3 1 . 11 3 9 5 Detach 10 | 4 . . 3 . 3 . Swap 18 | 1 1 1 10 1 3 1 Drop 33 | 1 . 4 12 3 6 7 Fire 284 | 13 33 26 65 28 57 62 Melee . | . . . . . . . Ram . | . . . . . . . Kick 3 | . . . 2 . . 1 Crush 6 | . 1 3 2 . . . Escape Stasis 76 | . . . . . 76 . Rewire . | . . . . . . . Trap . | . . . . . . . Miscellaneous . | . . . . . . . Route ------- -11/Scrapyard -10/Materials -10/Mines (discovered 2 exits: *Mat / *Exi) -9/Materials (discovered 3 exits: *Mat / *Min x2) -8/Materials -8/Garrison (discovered 3 exits: *Mat x3) -8/Materials (discovered 1 exit: *Sto) History --------- Turn | Location | Event 2 | -11/Scrapyard | Discovered new exit (range 16) 188 | -11/Scrapyard | Entered Materials 302 | -10/Materials | Discovered new exit (range 16) 303 | -10/Materials | Build established: Mutant 727 | -10/Materials | Identified exit to Mines 728 | -10/Materials | Entered Mines 1059 | -10/Mines | Deemed a non-threat by the Exiles lab entrance 1060 | -10/Mines | Discovered new exit (range 5) 1065 | -10/Mines | Identified exit to Exiles 1390 | -10/Mines | Learned location of Mines (-9) 1408 | -10/Mines | Assisted by bots powering up and referring to "LRC-V3" 1791 | -10/Mines | Discovered new exit (range 5) 1799 | -10/Mines | Identified exit to Materials 1800 | -10/Mines | Entered Materials 1800 | -9/Materials | Accompanied by 3 allies 1800 | -9/Materials | Evolved 2 slots: Propulsion x2 1928 | -9/Materials | Discovered new exit (range 16) 2030 | -9/Materials | Discovered new exit (range 10) 2112 | -9/Materials | Identified exit to Materials 2249 | -9/Materials | Discovered new exit (range 11) 2260 | -9/Materials | Identified exit to Mines 2347 | -9/Materials | Build established: Scavenger-Mutant 2573 | -9/Materials | Entered another Materials area 2573 | -8/Materials | Evolved 2 slots: Utility x2 2663 | -8/Materials | Garrison activated, responded to threat 2686 | -8/Materials | Lost 3 parts (1p2u) 2804 | -8/Materials | Identified exit to Garrison 2814 | -8/Materials | Entered Garrison 3026 | -8/Garrison | Triggered checkpoint 3147 | -8/Garrison | Triggered checkpoint 3148 | -8/Garrison | Triggered checkpoint 3182 | -8/Garrison | Triggered checkpoint 3208 | -8/Garrison | Destroyed 11 combat bots 3211 | -8/Garrison | Lost 11 parts (1p5n2u3w) 3444 | -8/Garrison | Triggered checkpoint 3504 | -8/Garrison | Lost 3 parts (1p1n1u) 3509 | -8/Garrison | Discovered new exit (range 14) 3524 | -8/Garrison | Attempted to access garrison exit controls, blocked by remote lockdown 3630 | -8/Garrison | Triggered checkpoint 3662 | -8/Garrison | Garrison Relay disabled 3809 | -8/Garrison | Core integrity fell below 50% 3859 | -8/Garrison | Lost 4 parts (1p1n1u1w) 3888 | -8/Garrison | Discovered new exit (range 12) 3910 | -8/Garrison | Attempted to access garrison exit controls, blocked by remote lockdown 4140 | -8/Garrison | Triggered checkpoint 4141 | -8/Garrison | Garrison Relay disabled 4212 | -8/Garrison | Discovered new exit (range 12) 4229 | -8/Garrison | Installed Relay Interface Framework 4233 | -8/Garrison | Entered Materials 4282 | -8/Materials | Repaired Imp. Ion Engine 4477 | -8/Materials | Lost 3 parts (2n1w) 4510 | -8/Materials | Core integrity fell below 20% 4542 | -8/Materials | Lost 3 parts (1p1n1w) 4624 | -8/Materials | Lost 3 parts (1p1n1w) 4666 | -8/Materials | Discovered new exit (range 13) 4697 | -8/Materials | Identified exit to Storage 5124 | -8/Materials | Destroyed by G-47 Trooper with Particle Gun Last Messages --------------- 05054_ System corrupted: Matter fused (-8). 05079_ System corrupted: Component data lost. 05080_ Destroyed Lgt. Ion Engine. 05080_ R-06 Scavenger suffers critical hit (Burn). 05083_ Destroyed Com. Wheel. 05083_ R-06 Scavenger destroyed. 05087_ K-01 Serf collects debris. 05088_ Acquired 24 matter. 05092_ K-01 Serf collects debris. 05094_ System corrupted: Imp. Treads rejected. 05095_ K-01 Serf collects debris. 05097_ R-06 Scavenger collects Imp. Treads. 05098_ R-06 Scavenger destroyed. 05100_ K-01 Serf collects debris. 05111_ Com. Battery destroyed. 05111_ K-01 Serf destroyed. 05117_ Acquired Com. Wheel. 05118_ Acquired 10 matter. 05119_ URTD9ZD1RWM8691LVMUT 05121_ Acquired Wheel. Map ----- +----------------------------------------------------+ | #??????????# #?????????# """""""" ####+# | | #??????????# #?????????# """"" %% ### # | | ##?????????######?????????# % | | ########################## | | % %% | | % % #################+##### | | #??????????# / ## | | #################/####??????????# """ ## | | ##?????????????# #??????????# """ ## | | #??????????????# #??????????# """ ### | | !! #??????????????# #??????????# """ #?# | | [% +??????????????# #??????????# """ "T" #?# | | = #??????????????# #????####### """ #?# | | #??????????????# #????# # #?# | | #??????????????#####+##????# ###########?# | | #??????????????????# #?????# """ #???????????# | | #??????????????????# #?????# """ #???#########+ | | #??????????????????# #?????# """ #???# | | ################???# ###???# ##### | | ####= ##### """ # # """ | | m + """ + # """"" | | [ ##### """ # # """"" | | ############# #???# # + """"" | | %# #???#/ """ %#???# # # """ | | =%# #???# """ %=#???# # # | | + #???# """ @#######+### ########## | | # = #???# #????? | | #?? #???# #????? | | #????####???# #????? | | #??????????######### #######+####????? | | ############ ## #???????????????? | | + """ ##g """ #???????????????? | | ############### """ ## "R +???????????????? | | ??????????????#| "" ## g""" #???????????????? | | ??????????????# / #???????????????? | | ??????????????# """ ## #???????????????? | | ??????????????#% """ ######### #???????????????? | | ??????????????# """ #???????# #???????????????? | | ??????????????# #???????# #???????????????? | | ??????????????# """ #???????# #???????????????? | | ??????????????# """ #???????# #???????????????? | | ??????????????# """ #???????# #???????????????? | | ??????????????# #???????? #???????????????? | | ??????????????####?###???????? #???????????????? | | ??????????????????????????????? #???????????????? | | ??????????????????????????????? ????????????????? | | ?????????????????????????????????????????????????? | | ?????????????????????????????????????????????????? | | ?????????????????????????????????????????????????? | | ?????????????????????????????????????????????????? | +----------------------------------------------------+ Best States ------------- Heat Dissipation 55 Energy Generation 14 Energy Capacity 465 Matter Stores 300 Matter Capacity 300 Sight Range 18 Robot Scan Range 14 Terrain Scan Density 10 Armor Coverage 225 Evasion (%) 63 Recoil Reduction 2 Item Schematics ----------------- None Robot Schematics ------------------ None Fabricated ------------ Nothing Alien Tech Used ----------------- None Achievements -------------- Backstab Quick And Dirty Challenges ------------ None Game ------ Seed Qirby Manual? 1 Play Time 00:51:42 Cumulative 11.1 hours Start 2022.03.28 @ 23:10:30 End 2022.03.29 @ 11:03:34 Sessions 3 Manual Loads 0 Difficulty Rogue Special Mode None Game No. 12 Rogue 12 Adventurer 0 Explorer 0 Win Type - Total 0 Types 0/0/0/0/0/0/0/0/0 Lore% 15 Gallery% 16 Achievement% 14 Wizard Run 0 Options --------- ASCII 1 Keyboard 0 Movement Mouse Keybinds 0 Fullscreen 1 Font 14/Terminus Map View 84x54 Tactical HUD 1 Map Filters NONE Filters NONE Steam 1 RUN: 22d708ee-23f6-4f09-8d46-4a554877805e